{"text_format":"1","workbook":"xlsx","n_sheets":5,"sheets":["Dataset","ISEVEN","IF and MOD","IF and ISODD","Excel VBA"],"not_rendered":{"charts":0,"images":0,"macros":1,"external_links":0,"defined_names":0,"comments":0,"pivot_tables":0},"unopened":[],"bounds":{"document_bytes":16777216,"sheet_cells":100000,"rows_first":2000,"rows_last":500,"rows_between":2000,"halvings":0,"cell_chars":16384,"cell_head_chars":4096},"cells_cut":0,"cells_raw":0,"read":"whole","date_system":"1900"}

{"sheet":"Dataset","index":0,"n_rows":10,"n_cols":3,"rows_kept":10,"cut":false,"hidden":false,"merged":[[1,1,1,2]]}
[]
[null,"Dataset"]
[]
[null,"Number","Even?"]
[null,2,{"$f":"ISEVEN(B5)","v":true}]
[null,3,{"$f":"ISEVEN(B6)","v":false}]
[null,6,true]
[null,8,true]
[null,9,false]
[null,11,false]

{"sheet":"ISEVEN","index":1,"n_rows":10,"n_cols":11,"rows_kept":10,"cut":false,"hidden":false,"merged":[[1,1,1,2],[1,9,1,10]]}
[]
[null,"Utilizing ISEVEN Function",null,null,null,null,null,null,null,"Try Yourself"]
[]
[null,"Number","Even?",null,null,null,null,null,null,"Number","Even?"]
[null,2,{"$f":"ISEVEN(B5)","v":true},null,null,null,null,null,null,2]
[null,3,{"$f":"ISEVEN(B6)","v":false},null,null,null,null,null,null,3]
[null,6,true,null,null,null,null,null,null,6]
[null,8,true,null,null,null,null,null,null,8]
[null,9,false,null,null,null,null,null,null,9]
[null,11,false,null,null,null,null,null,null,11]

{"sheet":"IF and MOD","index":2,"n_rows":10,"n_cols":11,"rows_kept":10,"cut":false,"hidden":false,"merged":[[1,1,1,2],[1,9,1,10]]}
[]
[null,"Combining IF and MOD Functions",null,null,null,null,null,null,null,"Try Yourself"]
[]
[null,"Number","Even?",null,null,null,null,null,null,"Number","Even?"]
[null,2,{"$f":"IF(MOD(B5,2),\n\"FALSE\",\"TRUE\")","v":"TRUE"},null,null,null,null,null,null,2]
[null,3,{"$f":"IF(MOD(B6,2),\n\"FALSE\",\"TRUE\")","v":"FALSE"},null,null,null,null,null,null,3]
[null,6,"TRUE",null,null,null,null,null,null,6]
[null,8,"TRUE",null,null,null,null,null,null,8]
[null,9,"FALSE",null,null,null,null,null,null,9]
[null,11,"FALSE",null,null,null,null,null,null,11]

{"sheet":"IF and ISODD","index":3,"n_rows":10,"n_cols":11,"rows_kept":10,"cut":false,"hidden":false,"merged":[[1,1,1,2],[1,9,1,10]]}
[]
[null,"Merging IF and ISODD Functions",null,null,null,null,null,null,null,"Try Yourself"]
[]
[null,"Number","Even?",null,null,null,null,null,null,"Number","Even?"]
[null,2,{"$f":"IF(ISODD(B5),\n\"FALSE\",\"TRUE\")","v":"TRUE"},null,null,null,null,null,null,2]
[null,3,{"$f":"IF(ISODD(B6),\n\"FALSE\",\"TRUE\")","v":"FALSE"},null,null,null,null,null,null,3]
[null,6,"TRUE",null,null,null,null,null,null,6]
[null,8,"TRUE",null,null,null,null,null,null,8]
[null,9,"FALSE",null,null,null,null,null,null,9]
[null,11,"FALSE",null,null,null,null,null,null,11]

{"sheet":"Excel VBA","index":4,"n_rows":10,"n_cols":11,"rows_kept":10,"cut":false,"hidden":false,"merged":[[1,1,1,2],[1,9,1,10]]}
[]
[null,"Running Excel VBA Code",null,null,null,null,null,null,null,"Try Yourself"]
[]
[null,"Number","Even?",null,null,null,null,null,null,"Number","Even?"]
[null,2,{"$f":"ISEVEN(B5)","v":true},null,null,null,null,null,null,2]
[null,3,{"$f":"ISEVEN(B6)","v":false},null,null,null,null,null,null,3]
[null,6,true,null,null,null,null,null,null,6]
[null,8,true,null,null,null,null,null,null,8]
[null,9,false,null,null,null,null,null,null,9]
[null,11,false,null,null,null,null,null,null,11]